bitfinex/quotes_ETHUSD_20220213
["timestamp","ask_amount","ask_price","bid_price","bid_amount"]
[1644778885353,0.18594155,2860.9,2860.0,0.01134526]
[1644778885552,0.01134155,2860.9,2860.0,0.01134526]
[1644778885895,0.1746,2861.1,2859.8,0.505]
[1644778886098,1.09158332,2860.8,2860.3,0.01134489]
[1644778886596,0.01134237,2860.9,2860.3,0.01134489]
[1644778886894,1.04879,2861.1,2859.8,0.505]
[1644778886895,3.67512759,2861.0,2859.8,0.505]
[1644778887197,0.1748,2860.8,2859.4,0.505]
[1644778887395,0.8761945,2860.8,2859.4,0.505]
[1644778887595,0.8761945,2860.8,2859.5,0.17209129]
[1644778887795,0.8761945,2860.8,2859.6,0.505]
[1644778888197,7.8221,2861.1,2859.7,0.17209129]
[1644778888398,0.00782876,2860.9,2859.8,0.505]
[1644778888602,0.00782876,2860.9,2860.0,0.87395]
[1644778888796,0.00782876,2860.9,2860.1,0.6796]
[1644778888998,0.00782876,2860.9,2860.1,1.15169129]
[1644778889197,0.00782876,2860.9,2860.2,6.311]
[1644778889397,3.66771955,2861.8,2860.3,1.0]
[1644778889664,0.01136368,2860.9,2860.4,0.01136601]
[1644778889847,0.01136368,2860.9,2860.5,0.42]
[1644778890553,3.66771955,2861.8,2860.5,0.42]
[1644778890747,0.01136423,2860.9,2860.6,0.01136576]
[1644778890949,0.00098748,2860.7,2860.6,1.05976576]
[1644778891151,0.00098748,2860.7,2860.6,1.65185705]
[1644778891449,0.00098748,2860.7,2860.6,1.47976576]
[1644778891747,0.00098748,2860.7,2860.6,21.81049129]
[1644778892147,0.00098748,2860.7,2860.6,2.64049129]
[1644778892948,0.00098748,2860.7,2860.6,22.81049129]
[1644778893250,0.00098748,2860.7,2860.6,4.98141056]
[1644778893498,0.00098748,2860.7,2860.6,1.46589129]
[1644778893699,0.00098748,2860.7,2860.6,21.63589129]
[1644778893897,0.00098748,2860.7,2860.6,21.76709129]
[1644778894098,8.748e-05,2860.7,2860.6,26.81049129]
[1644778894299,0.00366094,2862.1,2860.6,26.81049129]
[1644778894300,0.00366094,2862.1,2861.1,0.8734]
[1644778894501,0.04419772,2861.7,2861.2,31.19080147]
[1644778894798,0.04419772,2861.7,2861.4,20.17]
[1644778894999,0.04419772,2861.7,2861.5,0.5946]
[1644778895200,0.04419772,2861.7,2861.6,0.42]
[1644778895397,0.00366094,2862.2,2861.6,0.72]
[1644778895600,0.00366094,2862.2,2861.8,0.82346]
[1644778895800,0.36245806,2862.3,2861.9,0.42]
[1644778895999,0.36245806,2862.3,2861.8,3.94037341]
[1644778896203,0.36245806,2862.3,2862.0,0.42]
[1644778896599,0.36245806,2862.3,2862.0,2.11664]
[1644778896800,0.36245806,2862.3,2862.0,2.58873129]
[1644778897252,0.36245806,2862.3,2862.2,20.17]
[1644778897448,0.36245806,2862.3,2862.2,20.59]
[1644778897646,2.12360638,2863.8,2862.4,4.75]
[1644778897647,0.89280638,2863.8,2862.4,4.75]
[1644778897950,1.7631146,2864.6,2862.4,4.75]
[1644778897951,0.0167746,2864.6,2863.6,5.25941899]
[1644778898151,0.0167746,2864.6,2863.7,0.73559789]
[1644778898351,0.0167746,2864.6,2864.0,20.17]
[1644778898548,0.8894423,2864.9,2864.2,20.17]
[1644778898549,0.00367299,2864.8,2864.2,20.17]
[1644778898754,0.00367299,2864.8,2864.1,0.42]
[1644778898755,0.00367299,2864.8,2864.5,20.17]
[1644778898949,0.8394423,2864.9,2864.6,20.59]
[1644778899151,0.8394423,2864.9,2864.6,20.89]
[1644778899349,0.8394423,2864.9,2864.7,1.0]
[1644778899548,0.8394423,2864.9,2864.8,0.42]
[1644778900355,0.8394423,2864.9,2864.3,1.17209129]
[1644778900356,0.7894423,2864.9,2864.3,0.42]
[1644778900749,0.7894423,2864.9,2863.6,0.25]
[1644778901000,0.00367299,2864.8,2863.8,0.87285]
[1644778901197,0.00367299,2864.8,2863.6,0.42]
[1644778901799,0.01136249,2864.4,2863.6,0.42]
[1644778902398,0.01136249,2864.4,2863.7,5.4214]
[1644778902599,0.00367299,2864.8,2864.2,20.17]
[1644778902799,0.0174409,2865.0,2864.6,20.17]
[1644778903004,0.8964626,2866.2,2864.8,24.92]
[1644778903200,0.8964626,2866.2,2865.0,21.04231]
[1644778903402,0.8964626,2866.2,2865.2,5.247]
[1644778903597,0.8964626,2866.2,2865.1,0.90999789]
[1644778903598,0.8964626,2866.2,2865.3,5.8414]
[1644778903797,0.8964626,2866.2,2865.6,1.7442]
[1644778904001,0.8964626,2866.2,2865.7,0.42]
[1644778904200,0.001,2866.5,2865.8,4.75]
[1644778904401,0.0172888,2866.7,2865.9,0.37]
[1644778904660,0.0172888,2866.7,2865.9,0.5044]
[1644778904854,0.0172888,2866.7,2865.9,0.67729129]
[1644778905052,0.0172888,2866.7,2866.0,0.17209129]
[1644778905256,0.001,2867.5,2866.6,5.247]
[1644778905458,0.8703,2867.6,2866.6,5.247]
[1644778905459,0.8703,2867.6,2866.8,21.04164]
[1644778905654,0.8703,2867.6,2867.0,5.247]
[1644778905854,0.001,2868.1,2867.1,1.42]
[1644778906057,0.0175689,2868.3,2867.3,1.74318]
[1644778906254,1.055479,2867.9,2867.4,0.42]
[1644778906455,0.55172058,2867.2,2867.1,0.42]
[1644778906855,0.55172058,2867.2,2866.2,5.247]
[1644778907056,0.55172058,2867.2,2866.8,0.42]
[1644778907857,4.2,2867.0,2865.5,8.07461894]
[1644778908056,1.07987049,2866.8,2865.6,0.42]
[1644778908700,4.9,2866.9,2865.6,0.42]
[1644778908701,0.8561522,2866.3,2865.6,0.42]
[1644778909001,0.01135852,2866.3,2865.6,0.42]
[1644778909501,0.01135852,2866.3,2865.6,1.29225]
[1644778909901,1.048026,2866.8,2865.6,1.29225]
[1644778910102,0.01135883,2866.1,2865.6,1.29225]
[1644778910506,0.01135883,2866.1,2865.6,0.42]
[1644778911105,1.16926684,2865.8,2865.6,0.42]
[1644778911308,1.16926684,2865.8,2864.9,1.99473]
[1644778911309,0.25,2865.9,2864.9,0.42]
[1644778911505,0.14955892,2866.0,2864.9,0.42]
[1644778911506,0.32395892,2866.0,2864.9,0.42]
[1644778911708,0.14955892,2866.0,2864.9,0.42]
[1644778911904,0.39955892,2866.0,2864.9,0.42]
[1644778912153,0.39955892,2866.0,2865.1,0.87242]
[1644778912154,0.14955892,2866.0,2865.1,0.87242]
[1644778912349,1.03207743,2866.0,2865.1,0.87242]
[1644778912546,1.03207743,2866.0,2864.9,0.42]
[1644778912547,0.01135945,2865.6,2864.9,0.42]
[1644778913347,1.20647743,2866.0,2864.9,0.42]
[1644778913546,0.00372451,2865.9,2864.9,0.42]
[1644778913748,0.0113597,2865.4,2865.2,0.8724]
[1644778913948,0.0113597,2865.4,2865.3,0.42]
[1644778914250,0.0113597,2865.4,2865.3,0.59209129]
[1644778914649,1.1675347,2866.4,2865.3,0.59209129]
[1644778914848,1.1675347,2866.4,2865.3,2.16456]
[1644778915048,0.17812451,2866.3,2865.3,2.16456]
[1644778915452,0.17812451,2866.3,2865.3,0.42]
[1644778915651,0.00372451,2866.3,2865.3,0.42]
[1644778915904,0.1744,2866.5,2865.3,0.42]
[1644778916101,0.00104497,2865.5,2865.1,0.78793714]
[1644778916302,0.00104497,2865.5,2865.2,2.16464]
[1644778916501,0.00104497,2865.5,2865.3,0.42]
[1644778917402,0.00104497,2865.5,2865.1,1.91905]
[1644778917403,4.75,2865.4,2865.1,1.91905]
[1644778917604,0.00104497,2865.5,2865.0,0.0008554]
[1644778917904,0.00104497,2865.5,2865.0,0.8732954]
[1644778918404,0.00104497,2865.5,2865.1,0.1744]
[1644778918602,0.00104497,2865.5,2865.0,0.8732954]
[1644778918603,0.01135228,2865.4,2865.0,0.8732954]
[1644778918803,0.01135228,2865.4,2865.0,0.0008554]
[1644778919406,0.00104497,2865.5,2865.0,0.0008554]
[1644778919407,5.0,2865.3,2865.0,0.0008554]
[1644778919665,1.11185761,2865.2,2865.0,0.0008554]
[1644778919853,5.1744,2865.1,2865.0,0.0008554]
[1644778920457,0.1744,2865.1,2865.0,0.0008554]
[1644778920653,1.11185761,2865.2,2865.0,0.0008554]
[1644778921053,6.12321014,2865.2,2865.0,0.0008554]
[1644778921457,1.05812552,2864.6,2864.5,0.1744]
[1644778922258,1.05812552,2864.6,2864.3,0.6698]
[1644778922259,4.75,2864.5,2864.3,0.6698]
[1644778922653,4.9244,2864.5,2864.3,0.6698]
[1644778923254,4.93575333,2864.5,2864.3,0.6698]
[1644778923700,4.75,2864.4,2863.7,0.8722]
[1644778923900,4.75,2864.4,2863.1,0.1744]
[1644778923901,0.88077611,2863.9,2863.1,0.1744]
[1644778924102,1.02524214,2863.3,2862.7,0.17209129]
[1644778924300,4.33948863,2864.1,2862.7,0.17209129]
[1644778924301,0.25,2863.9,2862.7,0.17209129]
[1644778924504,5.0,2863.6,2862.5,0.18575916]
[1644778924702,0.00372451,2863.8,2862.5,0.18575916]
[1644778924703,5.0,2863.4,2862.5,0.18575916]
[1644778924905,4.22253276,2863.3,2862.5,0.18575916]
[1644778925101,5.0,2863.1,2862.5,0.18575916]
[1644778925301,1.17549941,2862.6,2862.5,0.18575916]
[1644778925601,1.17549941,2862.6,2861.6,0.1746]
[1644778925806,1.07403276,2862.1,2861.4,0.1746]
[1644778926002,1.07403276,2862.1,2861.2,7.47]
[1644778926203,1.07403276,2862.1,2860.9,1.29581129]
[1644778926204,0.00372451,2862.0,2861.4,0.1746]
[1644778926401,1.07403276,2862.1,2861.0,0.1746]
[1644778926602,0.00372451,2862.0,2861.0,0.1746]
[1644778926800,0.00372451,2862.0,2861.0,0.1246]
[1644778927002,0.00372451,2862.0,2861.6,0.01135784]
[1644778927262,0.00372451,2862.4,2861.6,0.01135784]
[1644778927464,0.1746,2862.3,2861.6,0.01135784]
[1644778927656,0.00372451,2862.2,2861.6,0.01135784]
[1644778927858,0.87758451,2862.2,2860.9,0.17209129]
[1644778928060,0.87758451,2862.2,2861.8,0.01135752]
[1644778928061,4.17558139,2862.1,2861.8,0.01135752]
[1644778928262,5.17832451,2862.3,2861.8,5.752e-05]
[1644778928459,5.0,2861.9,2861.8,5.752e-05]
[1644778928657,4.72209862,2862.2,2861.8,5.752e-05]
[1644778928858,1.04856,2862.0,2861.8,5.752e-05]
[1644778929060,0.1746,2862.1,2860.9,0.25]
[1644778929259,0.17832451,2862.3,2861.0,0.1746]
[1644778929461,0.00372451,2862.3,2861.0,0.1746]
[1644778929659,1.05681564,2861.9,2861.0,0.1746]
[1644778929859,0.93674203,2861.4,2861.0,0.1746]
[1644778930064,5.1746,2862.2,2861.0,0.1746]
[1644778930259,0.1746,2862.2,2861.0,0.1746]
[1644778930458,3.80900566,2862.1,2861.0,0.1746]
[1644778930660,0.1746,2862.0,2861.0,0.1746]
[1644778930902,5.0,2861.8,2861.0,0.1746]
[1644778931104,4.75,2861.4,2860.4,0.8796]
[1644778931302,1.1919253,2860.5,2860.4,0.8796]
[1644778932103,1.92328,2860.9,2859.6,0.8716]
[1644778932104,1.13305299,2859.7,2859.6,0.8716]
[1644778932304,4.7272,2860.4,2859.6,0.8716]
[1644778932707,0.4272,2860.4,2859.6,0.8716]
[1644778932904,0.4272,2860.4,2859.9,0.00356684]
[1644778933503,0.8365791,2860.1,2859.9,0.00356684]
[1644778934003,0.4272,2860.4,2859.9,0.01136313]
[1644778935049,0.4272,2860.4,2859.3,0.1748]
[1644778935050,0.95319722,2859.8,2859.3,0.1748]
[1644778935955,3.83731884,2859.7,2858.3,0.17209129]
[1644778936151,1.09373649,2858.4,2858.3,0.17209129]
[1644778936350,5.0,2859.3,2858.0,0.8796]
[1644778936551,0.1748,2859.6,2858.0,1.05169129]
[1644778936752,0.4988,2859.8,2858.2,0.87455]
[1644778936952,0.4988,2859.8,2858.2,1.29455]
[1644778937154,4.12119391,2859.7,2858.3,0.17209129]
[1644778937353,0.96512317,2858.9,2858.3,0.17209129]
[1644778937553,0.4907543,2858.9,2858.3,0.17209129]
[1644778937756,0.1748,2859.7,2858.9,0.0113617]
[1644778937952,0.7488,2859.8,2858.9,0.0113617]
[1644778938601,0.8747,2859.7,2858.9,0.0113617]
[1644778938801,0.8747,2859.7,2858.4,0.1748]
[1644778938802,0.93768499,2859.0,2858.4,0.1748]
[1644778939101,0.93768499,2859.0,2858.3,0.17209129]
[1644778940305,0.93768499,2859.0,2858.5,0.01136214]
[1644778940502,3.15,2858.9,2858.2,0.13616214]
[1644778940702,0.93768499,2859.0,2858.2,0.13616214]
[1644778940904,0.93768499,2859.0,2858.0,0.8796]
[1644778940905,0.93768499,2859.0,2858.1,0.1749]
[1644778941203,0.00092101,2858.8,2858.1,0.1749]
[1644778942455,0.17583101,2859.5,2858.2,4.75]
[1644778942652,0.04543286,2859.4,2858.4,20.17]
[1644778942856,0.04543286,2859.4,2858.6,20.17]
[1644778943051,0.04543286,2859.4,2858.7,0.42]
[1644778943252,0.04543286,2859.4,2858.9,0.87419]
[1644778943450,0.324,2859.8,2859.0,0.5948]
[1644778943651,0.324,2859.8,2859.0,0.8948]
[1644778943851,0.04313666,2859.6,2859.0,0.5948]
[1644778944049,0.04313666,2859.6,2859.0,0.42]
[1644778944453,0.04313666,2859.6,2859.1,0.1748]
[1644778944655,0.04313666,2859.6,2859.1,1.04909]
[1644778944850,0.324,2859.8,2859.1,1.04909]
[1644778945254,0.324,2859.8,2859.2,0.42]
[1644778946101,0.324,2859.8,2859.2,0.72]
[1644778946306,0.324,2859.8,2859.4,24.91993822]
[1644778946504,0.324,2859.8,2859.6,20.16993822]
[1644778946703,0.324,2859.8,2859.7,20.58993822]
[1644778946904,0.324,2859.8,2859.7,0.42]
[1644778947301,0.04313479,2860.1,2859.7,0.42]
[1644778947302,0.1748,2860.6,2859.7,20.76209129]
[1644778947504,0.05391727,2860.3,2859.7,20.76209129]
[1644778947704,0.05391727,2860.3,2860.1,1.5]
[1644778947901,0.05391727,2860.3,2860.2,0.42]
[1644778948206,0.05391727,2860.3,2860.2,0.37]
[1644778948401,3.12373631,2861.3,2860.2,0.37]
[1644778948402,4.00908777,2861.3,2860.3,0.87389]
[1644778948603,4.00908777,2861.3,2860.3,4.78773688]
[1644778948604,0.01085197,2860.4,2860.3,4.78773688]
[1644778948802,0.01085197,2860.4,2860.3,1.29389]
[1644778949665,0.04340138,2860.8,2860.1,1.5]
[1644778949666,1.14500007,2860.8,2860.1,1.5]
[1644778949853,3.96479282,2860.7,2860.1,1.5]
[1644778950051,0.89852455,2859.6,2859.3,0.1748]
[1644778950250,18.11469282,2860.7,2859.3,0.1748]
[1644778950450,11.71389282,2860.7,2859.3,0.1748]
[1644778950651,16.71389282,2860.7,2859.3,0.1248]
[1644778950853,17.58821282,2860.7,2859.3,0.1248]
[1644778951051,0.00081332,2860.2,2859.3,0.1248]
[1644778951254,1.15431922,2859.9,2859.3,0.1248]
[1644778951851,0.00081332,2860.2,2859.3,0.1248]
[1644778952054,0.00081332,2860.2,2859.4,0.87419]
[1644778952253,0.04544365,2860.2,2859.4,0.87419]
[1644778953053,0.00081332,2860.2,2859.4,0.87419]
[1644778953604,0.00081332,2860.2,2859.6,0.87421]
[1644778954507,0.00081332,2860.2,2859.4,1.74836]
[1644778954709,0.00081332,2860.2,2859.5,0.1748]
[1644778956314,0.00081332,2860.2,2859.4,0.87427]
[1644778957547,1.332e-05,2860.2,2859.4,0.87427]
[1644778958050,1.332e-05,2860.2,2859.7,21.04409]
[1644778958251,1.332e-05,2860.2,2859.8,20.7648]
[1644778958453,1.332e-05,2860.2,2859.8,25.08788668]
[1644778958748,1.332e-05,2860.2,2859.8,20.89]
[1644778958948,1.332e-05,2860.2,2860.0,1.0]
[1644778959148,1.332e-05,2860.2,2860.1,0.42]
[1644778960148,1.332e-05,2860.2,2860.1,1.92]
[1644778960749,1.332e-05,2860.2,2860.1,1.5]
[1644778961009,1.332e-05,2860.2,2859.2,0.1748]
[1644778961010,4.75,2860.1,2859.2,0.1748]
[1644778961206,4.75,2860.1,2858.4,0.0030632]
[1644778961207,5.96450259,2859.7,2858.4,0.0030632]
[1644778961406,1.11143971,2858.9,2858.4,0.0030632]
[1644778961606,1.11143971,2858.9,2858.1,0.8745]
[1644778961804,0.13819997,2859.6,2858.1,0.8745]
[1644778962005,0.1748,2859.5,2858.4,0.0030632]
[1644778962606,0.1748,2859.5,2858.6,0.87456]
[1644778962806,0.90563552,2859.4,2858.6,0.87456]
[1644778963005,0.1748,2859.3,2858.6,0.87456]
[1644778963610,0.1748,2859.3,2858.4,0.01116436]
[1644778964006,0.1748,2859.3,2858.5,0.87459]
[1644778964211,0.99730247,2858.9,2858.5,0.87459]
[1644778964412,0.99730247,2858.9,2858.1,0.8745]
[1644778965352,0.1748,2859.3,2858.1,0.8745]
[1644778965553,0.1748,2859.3,2858.4,0.00355647]
[1644778966156,0.1248,2859.3,2858.4,0.00355647]
[1644778966352,1.13589431,2859.1,2858.4,0.00355647]
[1644778966552,1.13589431,2859.1,2858.2,0.87459]
[1644778966754,1.13589431,2859.1,2858.4,0.87815648]
[1644778967253,1.13589431,2859.1,2858.4,0.00355648]
[1644778967752,1.13589431,2859.1,2858.1,0.8745]
[1644778967954,1.13589431,2859.1,2858.4,0.01137366]
[1644778968153,2.01065431,2859.1,2858.4,0.01137366]
[1644778968606,2.18545431,2859.1,2858.4,0.01137366]
[1644778968807,0.8748,2859.0,2858.1,0.8745]
[1644778969205,2.62456,2859.0,2858.4,0.01137366]
[1644778969605,3.49939,2859.0,2858.4,0.01137366]
[1644778970005,3.49939,2859.0,2858.1,0.8745]
[1644778970206,3.94374276,2858.9,2858.1,0.8745]
[1644778970406,3.67419,2859.0,2858.4,0.01137353]
[1644778970609,3.67419,2859.0,2858.7,0.7796]
[1644778971109,1.92442,2859.0,2858.7,0.7796]
[1644778971706,1.13589431,2859.1,2858.7,0.7796]
[1644778971707,1.31069431,2859.1,2858.7,0.7796]
[1644778971906,1.13589431,2859.1,2858.7,0.7796]
[1644778972949,2.01067431,2859.1,2858.7,0.7796]
[1644778974054,0.87484,2859.0,2858.7,0.7796]
[1644778975251,2.18547431,2859.1,2858.7,0.7796]
[1644778975450,2.01067431,2859.1,2858.7,0.7796]
[1644778976505,2.88549431,2859.1,2858.7,0.7796]
[1644778976709,0.87482,2859.0,2858.7,0.7796]
[1644778976907,5.40063206,2859.0,2858.7,0.7796]
[1644778977307,1.74977,2859.0,2858.7,0.7796]
[1644778977506,1.92457,2859.0,2858.7,0.7796]
[1644778977706,0.3878182,2858.4,2858.1,0.8745]
[1644778979106,0.3878182,2858.4,2858.2,0.38335466]
[1644778979759,0.3878182,2858.4,2858.1,0.8745]
[1644778979959,1.05228763,2858.1,2857.5,1.74967]
[1644778980160,1.05228763,2858.1,2857.6,0.386931]
[1644778980359,1.05228763,2858.1,2857.3,0.014]
[1644778980559,0.86052553,2857.6,2857.4,0.3871325]
[1644778981157,0.86052553,2857.6,2857.4,0.39068164]
[1644778981358,6.18804596,2858.3,2857.4,0.39068164]
[1644778981558,0.87511,2858.1,2857.4,0.39068164]
[1644778981759,3.63,2858.0,2857.4,0.39068164]
[1644778981961,3.63038599,2858.0,2857.4,0.39068164]
[1644778982157,0.87511,2858.1,2857.4,0.3871325]
[1644778982358,0.87511,2858.1,2857.6,0.00354889]
[1644778982559,1.0794008,2857.8,2857.6,0.00354889]
[1644778983403,1.0794008,2857.8,2857.4,0.3871325]
[1644778983606,1.0794008,2857.8,2857.6,0.00354889]
[1644778984205,4.81176728,2857.8,2857.6,0.00354889]
[1644778984402,4.81176728,2857.8,2857.3,0.014]
[1644778984403,1.0794008,2857.8,2857.3,0.014]
[1644778984806,1.0794008,2857.8,2857.6,7.79e-05]
[1644778984807,5.0,2857.7,2857.6,7.79e-05]
[1644778985006,8.93154311,2857.7,2857.6,7.79e-05]
[1644778985405,3.93154311,2857.7,2857.6,7.79e-05]
[1644778985604,3.0046508,2857.8,2857.3,0.014]
[1644778985807,0.1749,2857.6,2857.3,0.014]
[1644778986207,0.87526,2857.5,2857.3,0.014]
[1644778987754,4.62552614,2857.5,2857.3,0.014]
[1644778987953,0.87526,2857.5,2857.3,0.014]
[1644778988154,4.71042949,2857.5,2857.3,0.014]
[1644778988353,0.87526,2857.5,2857.3,0.014]
[1644778988754,0.1749,2857.4,2857.3,0.014]
[1644778990054,0.87526,2857.6,2857.3,0.014]
[1644778990907,3.6895,2857.7,2857.3,0.01754165]
[1644778991708,3.6895,2857.7,2857.3,0.014]
[1644778991909,3.7050508,2857.8,2857.4,0.00354159]
[1644778992309,0.79998,2857.7,2857.4,0.00354159]
[1644778992516,3.7878,2858.1,2857.4,0.00354159]
[1644778992910,3.7378,2858.1,2857.3,0.014]
[1644778993109,3.7378,2858.1,2857.5,0.00354146]
[1644778993713,0.25,2858.2,2857.5,0.00354146]
[1644778994114,0.3878182,2858.4,2857.5,0.34767844]
[1644778994312,0.3878182,2858.4,2857.6,0.76767844]
[1644778994514,0.01138122,2858.1,2857.7,1.22245844]
[1644778994756,0.01138122,2858.1,2857.8,0.34767844]
[1644778994960,0.01138122,2858.1,2857.8,1.22243844]
[1644778995159,0.01138122,2858.1,2857.7,1.74951]
[1644778995357,1.569985,2858.4,2857.7,1.74951]
[1644778995556,0.01138149,2858.1,2857.7,2.62429]
[1644778995756,0.01138149,2858.1,2857.7,1.74951]
[1644778996158,0.01138149,2858.1,2857.7,2.62432]
[1644778996359,0.01138149,2858.1,2857.7,0.87481]
[1644778996558,0.3878182,2858.4,2857.7,2.62433]
[1644778996758,0.01138135,2858.1,2857.8,0.5226104]
[1644778996957,0.01138135,2858.1,2857.9,0.3477104]
[1644778997159,0.01138135,2858.1,2858.0,0.1749]
[1644778997357,0.01138135,2858.1,2858.0,0.52272025]
[1644778997563,0.3878182,2858.4,2858.0,0.76782025]
[1644778997763,0.3878182,2858.4,2858.1,0.1749]
[1644778997958,0.01138158,2858.2,2858.1,0.5949]
[1644778998160,0.01138158,2858.2,2858.1,1.24248533]
[1644778998405,8.158e-05,2858.2,2858.1,3.86633533]
[1644778998604,8.158e-05,2858.2,2858.1,5.36633533]
[1644778998805,8.158e-05,2858.2,2858.1,6.71305662]
[1644778999009,3.12409908,2859.1,2858.3,4.75]
[1644778999309,0.1749,2859.2,2858.5,2.62317]
[1644778999505,0.1749,2859.2,2858.6,0.94238533]
[1644778999705,0.1749,2859.2,2858.7,0.34758533]
[1644778999909,0.13819997,2859.7,2858.8,1.46925]
[1644779000107,0.13819997,2859.7,2859.0,0.87445]
[1644779000309,0.97151771,2859.6,2859.1,0.42]
[1644779001109,0.13819997,2859.7,2858.7,0.42]
[1644779001110,1.1060761,2858.9,2858.7,0.42]
[1644779001507,0.1748,2859.6,2858.7,0.42]
[1644779001707,1.88766997,2859.7,2858.7,0.42]
[1644779001708,0.1748,2859.4,2858.7,0.42]
[1644779001907,0.1748,2859.6,2858.7,0.42]
[1644779002757,0.01138021,2859.3,2858.7,0.42]
[1644779002961,0.01138021,2859.3,2858.8,0.36572213]
[1644779003157,0.01138021,2859.3,2858.8,1.24028213]
[1644779003359,0.01138021,2859.3,2858.9,0.36572213]
[1644779003759,1.12197402,2859.5,2858.9,0.36572213]
[1644779003959,0.01138028,2859.2,2858.9,0.36572213]
[1644779004960,1.12197402,2859.5,2858.9,0.36572213]
[1644779005160,0.01138034,2859.2,2858.9,0.36572213]
[1644779005360,0.01138034,2859.2,2859.0,0.36572213]
[1644779005760,0.01138034,2859.2,2859.1,0.42]
[1644779006004,0.01138034,2859.2,2859.1,0.78572213]
[1644779006205,0.25,2860.0,2859.1,0.78572213]
[1644779006405,0.25,2860.0,2859.2,1.23998213]
[1644779006406,0.01138021,2859.3,2859.2,1.23998213]
[1644779007207,0.01138021,2859.3,2859.2,1.83998213]
[1644779007406,0.1748,2860.1,2859.2,1.83998213]
[1644779007407,0.1748,2860.1,2859.2,2.25998213]
[1644779007605,0.01138009,2859.4,2859.3,0.66572213]
[1644779007805,0.01138009,2859.4,2859.3,1.08572213]
[1644779008707,0.04551303,2859.9,2859.6,1.74843]
[1644779008907,0.04551303,2859.9,2859.7,0.36572213]
[1644779009105,0.04551303,2859.9,2859.6,1.74843]
[1644779009106,0.04551303,2859.9,2859.8,0.36572213]
[1644779009315,0.04551303,2859.9,2858.8,0.42]
[1644779009508,0.04551303,2859.9,2859.2,0.33602962]
[1644779009770,0.1748,2860.0,2859.1,0.87444]
[1644779009771,3.99648158,2860.0,2859.1,0.87444]
[1644779009971,1.12446,2860.2,2859.2,0.33605978]
[1644779009972,0.01137978,2859.6,2859.2,0.33605978]
[1644779010171,0.01137978,2859.6,2859.3,0.33605978]
[1644779010372,0.01137978,2859.6,2859.0,1.74878]
[1644779010571,0.01137978,2859.6,2859.1,0.33600116]
[1644779010974,0.96464208,2859.9,2859.1,0.33600116]
[1644779011171,0.01137996,2859.5,2859.1,0.33600116]
[1644779011373,0.01137996,2859.5,2859.1,1.21040116]
[1644779011572,0.01137996,2859.5,2859.2,0.33600116]
[1644779012179,1.01015511,2859.9,2858.8,1.74878]
[1644779012180,0.96464208,2859.9,2858.8,1.74878]
[1644779012378,0.01137996,2859.5,2858.9,0.33584032]
[1644779012575,0.01137996,2859.5,2859.0,0.33584032]
[1644779012775,0.01137996,2859.5,2859.1,0.33584032]
[1644779012976,0.01137996,2859.5,2858.7,1.74897]
[1644779013176,0.01137996,2859.5,2858.8,0.33572218]
[1644779013409,1.18495511,2859.9,2858.8,0.33572218]
[1644779013410,0.96464208,2859.9,2858.8,0.33572218]
[1644779013606,0.01138028,2859.2,2858.8,0.33572218]
[1644779013809,0.01138028,2859.2,2858.8,1.51020218]
[1644779014008,0.01138028,2859.2,2859.0,0.87448]
[1644779014206,0.01138028,2859.2,2859.1,0.33572218]
[1644779014606,0.04551427,2859.7,2859.1,0.33572218]
[1644779014607,0.25,2860.2,2859.1,0.33572218]
[1644779014813,0.01138021,2859.3,2859.2,0.33572218]
[1644779015007,0.01138021,2859.3,2859.0,0.33572218]
[1644779015608,0.01138021,2859.3,2859.0,0.63572218]
[1644779015809,1.11165326,2860.1,2859.1,1.21009218]
[1644779016014,0.01138021,2859.3,2859.2,1.21009218]
[1644779016210,0.01138021,2859.3,2859.2,2.08444218]
[1644779016823,0.01138021,2859.3,2859.2,3.27653347]
[1644779017012,0.1748,2860.4,2859.2,3.27653347]
[1644779017282,0.04551353,2859.8,2859.6,0.87412]
[1644779017481,0.04551353,2859.8,2859.7,0.75572218]
[1644779017679,0.02475935,2859.8,2859.7,0.75572218]
[1644779018178,1.16240731,2860.7,2859.7,0.75572218]
[1644779018379,1.16240731,2860.7,2860.0,0.8742]
[1644779019580,1.16240731,2860.7,2859.9,0.87416]
[1644779019781,0.95364108,2860.2,2859.5,1.74849]
[1644779019981,0.1748,2860.7,2859.5,1.74849]
[1644779019982,1.05018529,2859.6,2859.5,1.74849]
[1644779020182,0.1748,2860.1,2858.7,0.1748]
[1644779020381,0.25,2860.1,2858.8,0.3264476]
[1644779020581,0.25,2860.1,2858.9,0.5012476]
[1644779020582,0.1748,2860.0,2858.9,0.5012476]
[1644779020903,0.1748,2860.0,2859.3,0.00356662]
[1644779021207,0.25,2860.2,2859.3,0.00356662]
[1644779021403,1.1544945,2860.2,2859.3,0.00356662]
[1644779021907,0.01137927,2859.9,2859.5,0.01138097]
[1644779022105,0.01137927,2859.9,2859.6,0.87427]
[1644779022706,0.01137927,2859.9,2859.5,0.01138097]
[1644779022907,1.1544945,2860.2,2858.9,0.1748]
[1644779023208,0.01137927,2859.9,2859.5,0.01138097]
[1644779024205,0.87451,2860.0,2859.0,0.87449]
[1644779024408,0.01137913,2859.9,2859.5,0.01138083]
[1644779025257,0.87451,2860.0,2859.0,0.87449]
[1644779025456,0.87451,2860.0,2859.1,0.32612225]
[1644779025757,0.87451,2860.0,2859.1,0.28750308]
[1644779025758,0.9455976,2859.7,2859.1,0.28750308]
[1644779025958,0.9455976,2859.7,2859.1,0.87445]
[1644779025959,4.61283095,2859.7,2859.1,0.87445]
[1644779026258,0.01137913,2859.9,2858.7,0.1748]
[1644779026259,1.38379273,2859.2,2858.7,0.1748]
[1644779027058,2.25863273,2859.2,2858.2,0.0008]
[1644779027267,1.09937348,2858.7,2858.2,0.0008]
[1644779027658,3.4998,2858.9,2858.2,0.0008]
[1644779027858,1.74989,2858.9,2858.2,0.0008]
[1644779028063,0.1748,2859.1,2858.3,0.0035678]
[1644779028906,0.1748,2859.1,2858.2,0.0008]
[1644779029111,1.07398091,2859.0,2858.2,0.0008]
[1644779029308,0.1749,2858.9,2858.6,0.00356749]
[1644779030106,0.1749,2858.9,2858.2,0.0008]
[1644779030306,2.12370091,2859.0,2858.2,0.0008]